Cogmind - Beta 15 @@@ ROGUE MODE // 2025.08.31 @ 12:57:38 Player: Patches Result: Destroyed by H-55 Commando with Assault Rifle Performance ------------- Evolutions (0) 0 Regions Visited (3) 600 Robots Destroyed (11) 55 Value Destroyed (195) 195 Prototype IDs (23) 460 Alien Tech Used (0) 0 Bonus (300) 300 TOTAL SCORE: 1610 Bonus ------- Aligned with FarCom 300 Cogmind --------- Core Integrity 0/250 Matter 297/300 Energy 340/350 System Corruption 2% Temperature Cool (0) Movement Core (100) Ox1 Location -10/Exiles Parts ------- > --- POWER (1) -------- (None) > --- PROPULSION (2) --- (None) > --- UTILITY (2) ------ High-capacity Battery > --- WEAPON (2) ------- (None) > --- INVENTORY (5) ---- Aluminum Leg Large Storage Unit Experimental Sensor Array Seismic Detector Trap Reconfigurator Peak State ------------ > --- POWER ------------ Ion Engine > --- PROPULSION ------- Light Treads Light Treads > --- UTILITY ---------- Huge Storage Unit High-capacity Battery > --- WEAPON ----------- Assault Rifle Assault Rifle > --- INVENTORY -------- Ion Engine Ion Engine Light Ion Engine Light Treads Aluminum Leg Aluminum Leg Small Storage Unit Large Storage Unit Medium Matter Pod Experimental Sensor Array Signal Interpreter Seismic Detector Trap Reconfigurator Beam Cannon Assault Rifle Assault Rifle Grenade Launcher Makeshift Spear [Rating: 10] Favorites ----------- Power Ion Engine Engine Ion Engine Propulsion Light Treads Treads Light Treads Utility High-capacity Battery Storage High-capacity Battery Weapon Assault Rifle Energy Gun Medium Laser Ballistic Gun Assault Rifle Build | -11 -10 -10 -10 ------- Run | Yrd Mat Min Exi Slots Evolved . | . . . . Power . | . . . . Propulsion . | . . . . Utility . | . . . . Weapon . | . . . . Parts Attached 14 | 6 3 5 . Power 2 | 1 . 1 . Engine 2 | 1 . 1 . Core . | . . . . Reactor . | . . . . Propulsion 2 | 2 . . . Treads 2 | 2 . . . Leg . | . . . . Wheel . | . . . . Hover . | . . . . Flight . | . . . . Utility 5 | 1 2 2 . Device . | . . . . Storage 5 | 1 2 2 . Processor . | . . . . Hackware . | . . . . Protection . | . . . . Artifact . | . . . . Weapon 5 | 2 1 2 . Energy Gun 1 | 1 . . . Energy Cannon . | . . . . Ballistic Gun 4 | 1 1 2 . Ballistic Cannon . | . . . . Launcher . | . . . . Special Weapon . | . . . . Impact Weapon . | . . . . Slashing Weapon . | . . . . Piercing Weapon . | . . . . Special Melee Weapon . | . . . . Unidentified Prototypes . | . . . . Parts Lost 5 | . . . 5 Power 1 | . . . 1 Propulsion 2 | . . . 2 Utility . | . . . . Weapon 2 | . . . 2 Highest Loss Streak 5 | . . . 5 To Critical Strikes . | . . . . Average Backups 14 | 2 9 14 17 Power 2 | . 1 2 3 Propulsion 3 | 1 4 4 3 Utility 4 | . 1 5 6 Weapon 3 | . 1 3 5 Tool/Special . | . . . . Unused Backups 19 | . 1 2 16 Power 3 | . . . 3 Propulsion 5 | . . 2 3 Utility 5 | . . . 5 Weapon 6 | . 1 . 5 Tool/Special . | . . . . Average Slot Usage (%) 98 | . 93 99 99 Engine 13 | . 14 14 13 Treads 27 | . 28 28 27 Storage 27 | . 21 28 28 Ballistic Gun 27 | . 25 27 27 Peak Build Rating 10 | 6 8 9 10 Average Rating 8 | 5 7 8 9 On Entrance 5 | . 6 8 9 Naked Turns . | . . . . Heaviest Build 93 | 14 32 93 93 Greatest Support 40 | 40 40 40 40 Greatest Overweight (x) 4 | . . 2 4 Average Overweight (x) . | . . . 2 Largest Inventory Capacity 25 | 8 15 25 25 Average Capacity 18 | 6 12 16 25 Most Carried 18 | 6 14 17 18 Average Carried 14 | 3 9 14 17 Final Capacity 25 | 8 15 25 5 Final Carried 17 | 6 14 17 5 Class Distribution -------------------- 54% | Mutant 45% | Derelict-Mutant Dominant Class ---------------- Mutant | -10/Materials Mutant | -10/Mines Derelict-Mutant | -10/Exiles Resources | -11 -10 -10 -10 ----------- Run | Yrd Mat Min Exi Matter Collected 557 | 213 75 269 . Remotely . | . . . . Salvage Created 244 | . 93 151 . Parts 21 | . 11 10 . Haulers Intercepted . | . . . . Recyclers Shooed . | . . . . Parts Field Recycled . | . . . . Retrieved Matter . | . . . . Parts Self-Destructed . | . . . . Prevented . | . . . . Kills | -11 -10 -10 -10 ------- Run | Yrd Mat Min Exi Combat Hostiles Destroyed 11 | . 4 7 . Guns 11 | . 4 7 . Classes Destroyed 2 | . 2 . . Swarmer 8 | . 3 5 . Grunt 3 | . 1 2 . Best Kill Streak 3 | . 3 3 . Combat Bots Only 3 | . 3 3 . Max Kills in Single Turn 1 | . 1 1 . Gunslinging . | . . . . Exploded . | . . . . Melee . | . . . . Uniques/NPCs Destroyed . | . . . . Combat | -11 -10 -10 -10 -------- Run | Yrd Mat Min Exi Hostile Shots Fired 117 | . 7 57 53 Missed 36 | . 3 19 14 Hits 81 | . 4 38 39 Projectile 81 | . 4 38 39 Critical Strikes 2 | . . 2 . Damage Taken 992 | . 37 387 568 Core 260 | . 8 37 215 Absorbed by Shields . | . . . . Core Remaining (%) 100 | 100 . . . Volleys Fired 36 | . 5 28 3 Largest 2 | . 2 2 2 Hottest 40 | . 40 40 40 Shots Fired 72 | . 10 56 6 Gun 72 | . 10 56 6 Cannon . | . . . . Launcher . | . . . . Special . | . . . . Kinetic 72 | . 10 56 6 Thermal . | . . . . Explosive . | . . . . Electromagnetic . | . . . . Robot Hit Streak 5 | . 4 5 5 Robot Miss Streak 5 | . 1 5 1 Penetration Max . | . . . . Secondary Targets 1 | . . 1 . Max Gunslinging Chain 1 | . . 1 . Shots Hit Robots 41 | . 7 29 5 Core Hits 17 | . 5 11 1 Critical Kills . | . . . . Critical Parts Destroyed . | . . . . Critical Strikes . | . . . . Melee Attacks . | . . . . Impact . | . . . . Slashing . | . . . . Piercing . | . . . . Sneak Attacks . | . . . . Combat Hostiles . | . . . . Follow-up Attacks . | . . . . Damage Inflicted 499 | . 84 370 45 Guns 499 | . 84 370 45 Cannons . | . . . . Explosions . | . . . . Melee . | . . . . Ramming . | . . . . Kinetic 499 | . 84 370 45 Thermal . | . . . . Explosive . | . . . . Electromagnetic . | . . . . Impact . | . . . . Slashing . | . . . . Piercing . | . . . . Highest Corruption 2 | . . . 2 Average Corruption 1 | . . . 1 Corruption Purged . | . . . . Corruption Blocked . | . . . . Overload Shots . | . . . . Overflow Damage . | . . . . Projectiles . | . . . . Explosions . | . . . . Melee . | . . . . Knockbacks . | . . . . Impact . | . . . . Kinetic . | . . . . Secondary . | . . . . Self-Inflicted Damage . | . . . . Shots . | . . . . Rammed . | . . . . Targets Rammed . | . . . . Kicked . | . . . . Crushed . | . . . . Highest Temperature 20 | . . 20 . Average Temperature 7 | . . 7 . Received Heat Transfer 183 | . 12 123 48 Siege Activations . | . . . . Martial Activations . | . . . . Shielding Activations . | . . . . Robots Disrupted . | . . . . Combat Hostiles . | . . . . Robots Corrupted . | . . . . Combat Hostiles . | . . . . Parts Fried . | . . . . Impact Corruptions . | . . . . Robots Melted . | . . . . Combat Hostiles . | . . . . Parts Melted . | . . . . Heat Transferred . | . . . . Parts Sabotaged . | . . . . Parts Stolen . | . . . . Parts Stripped . | . . . . Power Chain Reactions . | . . . . Alert | -11 -10 -10 -10 ------- Run | Yrd Mat Min Exi Maximum Alert Level . | . . . . Low Security (%) 100 | 100 100 100 . Level 1 . | . . . . Level 2 . | . . . . Level 3 . | . . . . Level 4 . | . . . . Level 5 . | . . . . High Security . | . . . . Max Security . | . . . . Peak Influence 70 | . 70 62 . Initial 3 | . . 3 . Average 13 | . 28 10 . Influence Increases 293 | . 108 185 . Destroy 0b10 Robot/C 220 | . 80 140 . Destroy Leader 50 | . 20 30 . Successful Hack 8 | . 8 . . Lose Combat Pursuer 15 | . . 15 . Influence Decreases 293 | . 100 193 . Entered New Map 5 | . . 5 . Time Decay 288 | . 100 188 . Squads Dispatched 1 | . 1 . . Investigation 1 | . 1 . . Extermination . | . . . . Reinforcement . | . . . . Assault . | . . . . Garrison . | . . . . Intercept . | . . . . Searches Triggered . | . . . . Construction Impeded . | . . . . Haulers Reinforced . | . . . . Active Scanning Responses . | . . . . Cargo Convoy Interrupts . | . . . . Stealth | -11 -10 -10 -10 --------- Run | Yrd Mat Min Exi Distress Signals . | . . . . Communications Jammed . | . . . . Distress Signals . | . . . . Times Spotted 25 | . 4 9 12 Peak Tracking Total 13 | . 3 3 13 Tactical Retreats 1 | . . 1 . Traps | -11 -10 -10 -10 ------- Run | Yrd Mat Min Exi Traps Triggered . | . . . . Indirectly . | . . . . Trap Hack Attempts . | . . . . Triggered . | . . . . Disarmed . | . . . . Reprogrammed . | . . . . Reused . | . . . . Traps Extracted . | . . . . Installed . | . . . . Triggered . | . . . . Machines | -11 -10 -10 -10 ---------- Run | Yrd Mat Min Exi Machines Disabled 1 | . . . 1 Max in Single Turn 1 | . . . 1 Machines Repaired . | . . . . Machines Dismantled . | . . . . Machines Sabotaged . | . . . . Overloaded Fab Kills . | . . . . Hacking | -11 -10 -10 -10 --------- Run | Yrd Mat Min Exi Machines Accessed 8 | . 4 . 4 Terminals 2 | . 2 . . Fabricators . | . . . . Repair Stations . | . . . . Recycling Units 2 | . 2 . . Scanalyzers . | . . . . Garrison Access . | . . . . Total Hacks 42 | . 15 . 27 Successful 34 | . 7 . 27 Failed 8 | . 8 . . Catastrophic 2 | . 2 . . Database Lockouts . | . . . . Manual 16 | . 12 . 4 Terminals 6 | . 6 . . Fabricators . | . . . . Repair Stations . | . . . . Recycling Units 9 | . 9 . . Scanalyzers . | . . . . Garrison Access . | . . . . Terminal Hacks 28 | . 1 . 27 Record 26 | . . . 26 Branch Access Points 1 | . 1 . . Proto ID Catalog 1 | . . . 1 Fabricator Hacks . | . . . . Repair Station Hacks . | . . . . Recycling Unit Hacks 4 | . 4 . . Report Inventory 2 | . 2 . . Retrieve Components 2 | . 2 . . Scanalyzer . | . . . . Garrison Access Hacks . | . . . . Unauthorized Hacks 2 | . 2 . . Terminals . | . . . . Fabricators . | . . . . Repair Stations . | . . . . Recycling Units 2 | . 2 . . Reject 1 | . 1 . . Mask 1 | . 1 . . Scanalyzers . | . . . . Garrison Access . | . . . . Data Cores Recovered . | . . . . Used . | . . . . Hacking Detections 3 | . 3 . . Full Trace Events 2 | . 2 . . Feedback Events . | . . . . Feedback Blocked . | . . . . Robot Schematics Acquired . | . . . . Robots Built . | . . . . Authchips . | . . . . Time . | . . . . Total Robot Build Rating . | . . . . Part Schematics Acquired . | . . . . Parts Built . | . . . . Authchips . | . . . . Time . | . . . . Total Part Build Rating . | . . . . Parts Repaired . | . . . . Time . | . . . . Parts Recycled . | . . . . Recycled Matter . | . . . . Retrieved Matter . | . . . . Retrieved Components 6 | . 6 . . Parts Scanalyzed . | . . . . Part Schematics Acquired . | . . . . Parts Damaged . | . . . . Bothacking | -11 -10 -10 -10 ------------ Run | Yrd Mat Min Exi Used RIF Installer . | . . . . Robots Hacked . | . . . . Non-combat . | . . . . Combat . | . . . . Robot Hacks Applied . | . . . . Relay Couplers Released . | . . . . Fabnet Peak Effective % . | . . . . Robots Rewired . | . . . . Allies Hacked . | . . . . Hacks Repelled . | . . . . Allies | -11 -10 -10 -10 -------- Run | Yrd Mat Min Exi Total Allies . | . . . . Largest Group . | . . . . Highest-Rated Group . | . . . . Highest-Rated Ally . | . . . . Total Orders . | . . . . Ally Attacks . | . . . . Total Damage . | . . . . Kills . | . . . . Allies Corrupted . | . . . . Allies Melted . | . . . . Intel | -11 -10 -10 -10 ------- Run | Yrd Mat Min Exi Active Infowar (turns) . | . . . . Robot Analysis Total . | . . . . Derelict Logs Recovered 1 | . . 1 . Drone Launches . | . . . . Drone Recoveries . | . . . . Exploration | -11 -10 -10 -10 ------------- Run | Yrd Mat Min Exi Turns Passed 2390 | 95 274 1140 881 Spaces Moved 1032 | 51 150 560 271 Core 8 | 8 . . . Treads 1024 | 43 150 560 271 Legs . | . . . . Wheels . | . . . . Hover . | . . . . Flight . | . . . . Fastest Speed 50 | 50 160 160 320 Average Speed 211 | 142 160 178 321 Slowest Speed 480 | 160 160 320 480 Overloaded Moves . | . . . . Propulsion Burnouts . | . . . . Robots Hopped . | . . . . Potential Cave-ins . | . . . . Cave-ins Triggered . | . . . . Exploration Rate (%) 42 | 4 34 89 44 Regions Visited 3 Branch Regions 2 Pre-discovered Areas 1 | . . 1 . Known Exits Taken 1 | . 1 . . Unknown Exits Taken 2 | 1 . 1 . Scrap Searched 2 | . . 2 . Spaces Dug . | . . . . Terrain Destroyed . | . . . . Melee . | . . . . Projectile . | . . . . AOE . | . . . . Terrain Rammed . | . . . . Walls Destroyed . | . . . . Machines Disabled . | . . . . Actions | -11 -10 -10 -10 --------- Run | Yrd Mat Min Exi Total 1169 | 73 175 645 276 Wait 50 | 5 3 42 . Move 1029 | 50 149 559 271 Hop . | . . . . Pick Up 29 | 12 11 5 1 Fast Attach 4 | . . 4 . Attach 9 | 6 3 . . Detach 1 | . 1 . . Swap 2 | . 1 1 . Drop 9 | . 2 6 1 Fire 36 | . 5 28 3 Melee . | . . . . Ram . | . . . . Kick . | . . . . Crush . | . . . . Escape Stasis . | . . . . Rewire . | . . . . Trap . | . . . . Miscellaneous . | . . . . Route ------- -11/Scrapyard -10/Materials (discovered 3 exits: [*Mat] / *Min x2) -10/Mines (discovered 4 exits: [*Mat x2] / *Exi / [*Sub]) -10/Exiles (discovered 1 exit: [*Min]) History --------- Turn | Location | Event 14 | -11/Scrapyard | Discovered new exit (range 15) 96 | -11/Scrapyard | Entered Materials 153 | -10/Materials | Discovered new exit (range 13) 278 | -10/Materials | Discovered new exit (range 9) 310 | -10/Materials | Build established: Mutant 330 | -10/Materials | Identified exit to Mines 370 | -10/Materials | Entered Mines 396 | -10/Mines | Learned location of Storage (-7) 538 | -10/Mines | Found a damaged Exp. Sensor Array with a note attached 541 | -10/Mines | Found Prototype Device 623 | -10/Mines | Discovered new exit (range 6) 1157 | -10/Mines | Discovered new exit (range 5) 1324 | -10/Mines | Discovered new exit (range 5) 1410 | -10/Mines | A weapon hastily lodged in a ceiling crevice suddenly fell to the ground 1494 | -10/Mines | Deemed a non-threat by the Exiles lab entrance 1494 | -10/Mines | Discovered new exit (range 5) 1510 | -10/Mines | Entered Exiles 1558 | -10/Exiles | Discovered new exit (range 15) 1586 | -10/Exiles | Build established: Derelict-Mutant 1594 | -10/Exiles | Met 8R-AWN 1661 | -10/Exiles | Met EX-HEX 1766 | -10/Exiles | Met EX-BIN 1808 | -10/Exiles | Aligned with FarCom system 1811 | -10/Exiles | Given EX-Vault access code 2000 | -10/Exiles | Opened EX-Vault 2129 | -10/Exiles | Exiles lab attacked by MAIN.C 2253 | -10/Exiles | Found Trap Reconfigurator 2386 | -10/Exiles | Core integrity fell below 50% 2389 | -10/Exiles | Core integrity fell below 20% 2391 | -10/Exiles | Destroyed by H-55 Commando with Assault Rifle Last Messages --------------- 02163_ Connecting with BIN's Terminal... 02164_ EXILES: Lab perimeter alert, evacuate immediately. 02166_ EX-BIN: "Not cool, MAIN.C, I don't even have my SDF Cannon ready..." 02253_ Acquired Trap Reconfigurator. 02370_ Penetrated by Slug. 02372_ Machine disabled. 02376_ Penetrated by Slug. 02379_ Lgt. Treads destroyed. 02380_ Assault Rifle destroyed. 02383_ Penetrated by Slug. 02383_ Assault Rifle destroyed. 02386_ Ion Engine destroyed. 02387_ Penetrated by Slug. 02388_ Slug penetrates Wall. 02389_ P-60 Hacker resets G-34 Mercenary, system corruption cleaned. 02391_ Lgt. Treads destroyed. 02391_ Dropped Huge Storage Unit. Map ----- +----------------------------------------------------+ | ????????????????#""X" #??????????????????? | | ????????????????#" #??????????????????? | | ????????????????#" ## #??????????????????? | | ????????????????#""""""## #?#########????????? | | ????????????????##"###### #?#"""""""#????????? | | ???????????????? "?????# #?#"""""""#????????? | | ???????????????"""??????# #?#"""""""#????????? | | ???????????????"""?????## ###"" """"#????????? | | ???????????????????????#" """"#????????? | | ???????????????????????#" """#????????? | | ???????????????????????#" """#????????? | | ???????????????????????#" """#????????? | | ???????????????????????#" """#????????? | | ???????????????????????#" """##???????? | | ???????????????????????## """""???????? | | ????????????????????????# """##???????? | | ????????????????????????#" "X" """""???????? | | ????????????????????????#" """ # ???????? | | ????????????????????????#" """""""""#????????? | | ???????????????????????##" ###########????????? | | ??????????????????????##"" #??????????????????? | | ?????????????????######"" #??????????????????? | | ????????????????##""""""" ##?????????????????? | | ????????????????"""" "! ##???#########????? | | ???????????????" """ *=*] #####"""""""""##?? | | ?????????????? " " [[@=! " """ """"##? | | ??????????? l ]/* "" " #? | | ?????????? h ! " """#? | | ??????????? % " "#? | | ??????????? " "## | | ???????????? p % ""# | | ???????????? pg """""" "" | | ???????????? h hgg ######""" | | ????????????? hg""#?????#####""" | | ????????????? g""#??????????##""" | | ?????????????? "??????????????#"""" | | ?????????????? ????????????????#"" | | ??????????????????????????????#"""" | | ????????????????????????????""" | | ???????????????????????????"" | | ?????????????????????????? | | ?????????????????????????? | | ?????????????????????????? " | | ?????????????????????????? "" """ | | ?????????????????????????? ##""" " " ""#" | | ??????????????????????????????####""" """##""""""" | | ?????????????????????????????????###""""#?######## | | ???????????????????????????????????#####?????????? | | ?????????????????????????????????????????????????? | | ?????????????????????????????????????????????????? | +----------------------------------------------------+ Best States ------------- Heat Dissipation 25 Energy Generation 10 Energy Capacity 500 Matter Stores 292 Matter Capacity 300 Sight Range 16 Terrain Scan Density 10 Evasion (%) 50 Recoil Reduction 2 Item Schematics ----------------- None Robot Schematics ------------------ None Fabricated ------------ Nothing Repaired ---------- Nothing Alien Tech Used ----------------- None Achievements -------------- None Challenges ------------ None Game ------ Seed AngularFactoryPlatform Manual? 0 Play Time 00:33:25 Cumulative 16.6 hours Start 2025.08.31 @ 12:09:34 End 2025.08.31 @ 12:57:38 Sessions 1 Manual Loads 0 Difficulty Rogue Special Mode None Game No. 17 Rogue 17 Adventurer 0 Explorer 0 Win Type - Total 0 Types 0/0/0/0/0/0/0/0/0/0 Lore% 12 Gallery% 16 Achievement% 22 Wizard Run 0 Options --------- Layout 1 ASCII 0 Keyboard 0 Movement Mouse Keybinds 0 Fullscreen 2 Font 24/Smallcaps Map View 50x35 Zoom Use 0% Tactical HUD 1 Map Filters NONE Filters NONE Steam 1 RUN: cba3589e-6c2b-4568-95f5-10d18108ed3a